Cogmind - Beta 9.4 @@@ ROGUE MODE // 2020.03.02 @ 19:16:34 // Winter2019/RPGLIKE Player: David Result: Destroyed by as-19193 with Assembled Heavy Rifle Performance ------------- Evolutions (0) 0 Regions Visited (4) 800 Robots Destroyed (27) 135 Value Destroyed (401) 401 Prototype IDs (1) 20 Alien Tech Used (0) 0 Bonus (300) 300 TOTAL SCORE: 1656 Bonus ------- Aligned with FarCom 300 Cogmind --------- Core Integrity 0/600 Matter 280/300 Energy 140/140 System Corruption 0% Temperature Cool (110) Movement Walking (120) Location -9/Mines Parts ------- > --- POWER (1) -------- Light Deuterium Engine > --- PROPULSION (2) --- Aluminum Leg Aluminum Leg > --- UTILITY (3) ------ Targeting Computer Targeting Computer Skeleton Box > --- WEAPON (3) ------- Beam Cannon Makeshift Shrapnel Gun Katana > --- INVENTORY (2) ---- Deploy-a-Sentry Peak State ------------ > --- POWER ------------ Light Deuterium Engine > --- PROPULSION ------- Aluminum Leg Aluminum Leg > --- UTILITY ---------- Targeting Computer Targeting Computer Skeleton Box > --- WEAPON ----------- Beam Cannon Makeshift Shrapnel Gun Katana > --- INVENTORY -------- Deploy-a-Sentry [Rating: 21] Favorites ----------- Power Ion Engine Engine Ion Engine Propulsion Aluminum Leg Leg Aluminum Leg Utility Targeting Computer Device Skeleton Box Processor Targeting Computer Protection Light Armor Plating Weapon Beam Cannon Energy Gun Medium Laser Energy Cannon Beam Cannon Ballistic Gun Makeshift Shrapnel Gun Special Weapon Mining Laser Slashing Weapon Katana Build | -11 -10 -10 -10 -9 ------- Run | Scr Mat Min Exi Min Slots Evolved 5 | 3 . 2 . . Power . | . . . . . Propulsion 1 | 1 . . . . Utility 2 | 2 . . . . Weapon 2 | . . 2 . . Parts Attached 18 | 4 8 3 1 2 Power 3 | 1 1 . . 1 Engine 3 | 1 1 . . 1 Core . | . . . . . Reactor . | . . . . . Propulsion 2 | 2 . . . . Treads . | . . . . . Leg 2 | 2 . . . . Wheel . | . . . . . Hover . | . . . . . Flight . | . . . . . Utility 7 | . 6 . 1 . Device 2 | . 1 . 1 . Storage . | . . . . . Processor 2 | . 2 . . . Hackware . | . . . . . Protection 3 | . 3 . . . Artifact . | . . . . . Weapon 6 | 1 1 3 . 1 Energy Gun 2 | 1 . 1 . . Energy Cannon 1 | . 1 . . . Ballistic Gun 1 | . . 1 . . Ballistic Cannon . | . . . . . Launcher . | . . . . . Special Weapon 1 | . . 1 . . Impact Weapon . | . . . . . Slashing Weapon 1 | . . . . 1 Piercing Weapon . | . . . . . Special Melee Weapon . | . . . . . Unidentified Prototypes 1 | . . . 1 . Parts Lost . | . . . . . Power . | . . . . . Propulsion . | . . . . . Utility . | . . . . . Weapon . | . . . . . Highest Loss Streak . | . . . . . Average Slot Usage (%) 97 | . 89 100 100 99 Engine 11 | . 14 11 11 11 Leg 23 | . 28 22 22 22 Device 5 | . 2 . 8 11 Processor 21 | . 17 22 22 22 Protection 6 | . 11 11 2 . Energy Gun 1 | . 1 4 . . Energy Cannon 11 | . 12 11 11 11 Ballistic Gun 7 | . . 6 11 11 Special Weapon 8 | . . 10 11 9 Naked Turns . | . . . . . Heaviest Build 14 | 5 14 14 14 14 Greatest Support 20 | 20 20 20 20 20 Greatest Overweight (x) 1 | 1 . . . . Average Overweight (x) . | . . . . . Largest Inventory Capacity 2 | 2 2 2 2 2 Average Capacity 1 | 1 2 2 2 2 Most Carried 2 | 2 2 2 2 2 Average Carried 1 | . 1 1 1 1 Final Capacity 2 | 2 2 2 2 2 Final Carried 2 | 1 2 1 2 1 Class Distribution -------------------- 56% | Mutant 43% | Gunner Dominant Class ---------------- Mutant | -10/Materials Mutant | -10/Mines Gunner | -10/Exiles Mutant | -9/Mines Resources | -11 -10 -10 -10 -9 ----------- Run | Scr Mat Min Exi Min Matter Collected 500 | 150 170 60 . 120 Remotely . | . . . . . Salvage Created 460 | . 412 9 . 39 Parts 40 | . 29 9 . 2 Haulers Intercepted 2 | . 2 . . . Recyclers Shooed . | . . . . . Parts Field Recycled . | . . . . . Retrieved Matter . | . . . . . Parts Self-Destructed . | . . . . . Prevented . | . . . . . Kills | -11 -10 -10 -10 -9 ------- Run | Scr Mat Min Exi Min Combat Hostiles Destroyed 20 | . 8 6 . 6 Guns 3 | . . 2 . 1 Cannons 15 | . 8 2 . 5 AOE 2 | . . 2 . . Classes Destroyed 8 | . 6 2 . . Tunneler 1 | . . 1 . . Hauler 2 | . 2 . . . Recycler 1 | . 1 . . . Operator 1 | . 1 . . . Watcher 2 | . 2 . . . Swarmer 12 | . 6 3 . 3 Grunt 4 | . 2 2 . . Assembled 4 | . . 1 . 3 Best Kill Streak 6 | . 6 4 . 2 Combat Bots Only 3 | . 3 3 . 2 Max Kills in Single Turn 2 | . 1 2 . 1 Gunslinging . | . . . . . Exploded 2 | . . 2 . . Melee . | . . . . . Uniques/NPCs Destroyed . | . . . . . Combat | -11 -10 -10 -10 -9 -------- Run | Scr Mat Min Exi Min Damage Taken 1039 | . 265 178 . 596 Core 807 | . 191 131 . 485 Absorbed by Shields . | . . . . . Redirected to Core 597 | . 137 86 . 374 Core Remaining (%) 100 | 100 . . . . Volleys Fired 90 | . 39 21 . 30 Largest 3 | . 1 3 . 3 Hottest 184 | . 60 184 . 184 Shots Fired 121 | . 39 29 . 53 Gun 28 | . . 6 . 22 Cannon 77 | . 39 8 . 30 Launcher . | . . . . . Special 16 | . . 15 . 1 Kinetic 28 | . . 6 . 22 Thermal 93 | . 39 23 . 31 Explosive . | . . . . . Electromagnetic . | . . . . . Robot Hit Streak 13 | . 9 13 . 4 Robot Miss Streak 8 | . 3 2 . 8 Penetration Max . | . . . . . Secondary Targets . | . . . . . Shots Hit Robots 67 | . 29 12 . 26 Core Hits 36 | . 14 9 . 13 Critical Hits 1 | . . . . 1 Critical Kills . | . . . . . Critical Parts Destroyed 1 | . . . . 1 Melee Attacks 2 | . . . . 2 Impact . | . . . . . Slashing 2 | . . . . 2 Piercing . | . . . . . Sneak Attacks . | . . . . . Combat Hostiles . | . . . . . Follow-up Attacks . | . . . . . Damage Inflicted 1385 | . 505 518 . 362 Guns 238 | . . 110 . 128 Cannons 804 | . 505 107 . 192 Explosions 253 | . . 253 . . Melee 42 | . . . . 42 Ramming . | . . . . . Kinetic 238 | . . 110 . 128 Thermal 1105 | . 505 408 . 192 Explosive . | . . . . . Electromagnetic . | . . . . . Impact . | . . . . . Slashing 42 | . . . . 42 Piercing . | . . . . . Highest Corruption . | . . . . . Average Corruption . | . . . . . Corruption Purged . | . . . . . Overload Shots . | . . . . . Overflow Damage 60 | . 12 48 . . Projectiles 12 | . 12 . . . Explosions 48 | . . 48 . . Melee . | . . . . . Knockbacks . | . . . . . Impact . | . . . . . Kinetic . | . . . . . Secondary . | . . . . . Self-Inflicted Damage 23 | . . 23 . . Shots 2 | . . 2 . . Rammed . | . . . . . Targets Rammed . | . . . . . Kicked . | . . . . . Crushed . | . . . . . Highest Temperature 294 | . 294 273 . 292 Average Temperature 91 | . 88 104 . 80 Received Heat Transfer 158 | . 66 12 . 80 Effects 5 | . 2 1 . 2 Energy Bleed 1 | . . 1 . . Interference 4 | . 2 . . 2 Siege Activations . | . . . . . Robots Corrupted . | . . . . . Combat Hostiles . | . . . . . Parts Fried . | . . . . . Impact Corruptions . | . . . . . Robots Melted . | . . . . . Combat Hostiles . | . . . . . Parts Melted 3 | . 1 . . 2 Heat Transferred 2152 | . 1073 672 . 407 Parts Sabotaged . | . . . . . Parts Stolen . | . . . . . Parts Stripped . | . . . . . Power Chain Reactions . | . . . . . Missiles Intercepted . | . . . . . Alert | -11 -10 -10 -10 -9 ------- Run | Scr Mat Min Exi Min Peak Influence 236 | . 236 161 . 115 Average Influence 97 | . 119 100 . 83 Maximum Alert Level 1 | . 1 . . . Low Security (%) 93 | 100 77 100 . 100 Level 1 6 | . 22 . . . Level 2 . | . . . . . Level 3 . | . . . . . Level 4 . | . . . . . Level 5 . | . . . . . High Security . | . . . . . Max Security . | . . . . . Squads Dispatched 1 | . 1 . . . Investigation . | . . . . . Extermination . | . . . . . Reinforcement 1 | . 1 . . . Assault . | . . . . . Garrison . | . . . . . Intercept . | . . . . . Construction Impeded . | . . . . . Haulers Reinforced . | . . . . . Stealth | -11 -10 -10 -10 -9 --------- Run | Scr Mat Min Exi Min Distress Signals 1 | . 1 . . . Communications Jammed . | . . . . . Distress Signals . | . . . . . Times Spotted 45 | . 14 8 . 23 Peak Tracking Total 11 | . 4 4 . 11 Tactical Retreats 9 | . 3 2 . 4 Traps | -11 -10 -10 -10 -9 ------- Run | Scr Mat Min Exi Min Traps Triggered . | . . . . . Indirectly . | . . . . . Trap Hack Attempts . | . . . . . Triggered . | . . . . . Disarmed . | . . . . . Reprogrammed . | . . . . . Reused . | . . . . . Traps Extracted . | . . . . . Installed . | . . . . . Triggered . | . . . . . Machines | -11 -10 -10 -10 -9 ---------- Run | Scr Mat Min Exi Min Machines Disabled 8 | . . 5 . 3 Max in Single Turn 5 | . . 5 . 1 Machines Sabotaged . | . . . . . Garrisons Compromised . | . . . . . Overloaded Fab Kills . | . . . . . Fab Network Shutdowns . | . . . . . Hacking | -11 -10 -10 -10 -9 --------- Run | Scr Mat Min Exi Min Machines Accessed 4 | . 3 . 1 . Terminals 2 | . 2 . . . Fabricators . | . . . . . Repair Stations . | . . . . . Recycling Units 1 | . 1 . . . Scanalyzers . | . . . . . Garrison Access . | . . . . . Total Hacks 15 | . 5 . 10 . Successful 14 | . 4 . 10 . Failed 1 | . 1 . . . Catastrophic . | . . . . . Database Lockouts . | . . . . . Manual 1 | . . . 1 . Terminals 4 | . 4 . . . Fabricators . | . . . . . Repair Stations . | . . . . . Recycling Units 1 | . 1 . . . Scanalyzers . | . . . . . Garrison Access . | . . . . . Terminal Hacks 13 | . 3 . 10 . Record 10 | . . . 10 . Branch Access Points 1 | . 1 . . . Alert Level 1 | . 1 . . . Investigation Status 1 | . 1 . . . Fabricator Hacks . | . . . . . Repair Station Hacks . | . . . . . Recycling Unit Hacks 1 | . 1 . . . Retrieve Matter 1 | . 1 . . . Scanalyzer . | . . . . . Garrison Access Hacks . | . . . . . Unauthorized Hacks . | . . . . . Terminals . | . . . . . Fabricators . | . . . . . Repair Stations . | . . . . . Recycling Units . | . . . . . Scanalyzers . | . . . . . Garrison Access . | . . . . . Data Cores Recovered . | . . . . . Used . | . . . . . Hacking Detections 1 | . 1 . . . Full Trace Events . | . . . . . Feedback Events . | . . . . . Feedback Blocked . | . . . . . Robot Schematics Acquired . | . . . . . Robots Built . | . . . . . Matter . | . . . . . Time . | . . . . . Total Robot Build Rating . | . . . . . Part Schematics Acquired . | . . . . . Parts Built . | . . . . . Matter . | . . . . . Time . | . . . . . Total Part Build Rating . | . . . . . Parts Repaired . | . . . . . Time . | . . . . . Parts Recycled . | . . . . . Recycled Matter . | . . . . . Retrieved Matter . | . . . . . Retrieved Components . | . . . . . Parts Scanalyzed . | . . . . . Part Schematics Acquired . | . . . . . Parts Damaged . | . . . . . Bothacking | -11 -10 -10 -10 -9 ------------ Run | Scr Mat Min Exi Min Used RIF Installer . | . . . . . Robots Hacked . | . . . . . Non-combat . | . . . . . Combat . | . . . . . Robot Hacks Applied . | . . . . . Relay Couplers Released . | . . . . . Robots Rewired . | . . . . . Allies Hacked . | . . . . . Hacks Repelled . | . . . . . Allies | -11 -10 -10 -10 -9 -------- Run | Scr Mat Min Exi Min Total Allies 1 | . . 1 . . Largest Group 1 | . . 1 . . Highest-Rated Group 31 | . . 31 . . Highest-Rated Ally 31 | . . 31 . . Total Orders . | . . . . . Ally Attacks 10 | . . . . 10 Total Damage 490 | . . . . 490 Kills 2 | . . . . 2 Allies Corrupted . | . . . . . Allies Melted . | . . . . . Turrets Deployed 1 | . . . . 1 Intel | -11 -10 -10 -10 -9 ------- Run | Scr Mat Min Exi Min Robot Analysis Total . | . . . . . Derelict Logs Recovered 3 | . . 1 . 2 Drone Launches . | . . . . . Drone Recoveries . | . . . . . Exploration | -11 -10 -10 -10 -9 ------------- Run | Scr Mat Min Exi Min Turns Passed 2426 | 52 463 724 688 499 Spaces Moved 1696 | 41 291 503 569 292 Core 12 | 12 . . . . Treads . | . . . . . Legs 1684 | 29 291 503 569 292 Wheels . | . . . . . Hover . | . . . . . Flight . | . . . . . Fastest Speed 50 | 50 120 120 120 120 Average Speed 119 | 105 120 120 120 120 Slowest Speed 120 | 120 120 120 120 120 Overloaded Moves . | . . . . . Propulsion Burnouts . | . . . . . Robots Hopped . | . . . . . Cave-ins Triggered . | . . . . . Exploration Rate (%) 50 | 3 39 78 89 45 Regions Visited 4 Branch Regions 3 Pre-discovered Areas 1 | . . 1 . . Known Exits Taken 1 | . 1 . . . Unknown Exits Taken 3 | 1 . 1 1 . Scrap Searched 3 | . . 2 . 1 Spaces Dug 5 | . . 5 . . Terrain Destroyed 32 | . . 32 . . Melee . | . . . . . Projectile 7 | . . 7 . . AOE 25 | . . 25 . . Actions | -11 -10 -10 -10 -9 --------- Run | Scr Mat Min Exi Min Total 1938 | 48 364 566 574 386 Wait 103 | 2 18 33 . 50 Move 1692 | 40 290 502 568 292 Hop . | . . . . . Pick Up 12 | 2 2 2 3 3 Fast Attach 8 | 3 5 . . . Attach 5 | 1 . 3 . 1 Detach 1 | . 1 . . . Swap 5 | . 3 . 1 1 Drop 10 | . 3 1 2 4 Fire 90 | . 39 21 . 30 Melee 2 | . . . . 2 Ram . | . . . . . Kick . | . . . . . Crush . | . . . . . Escape Stasis . | . . . . . Rewire . | . . . . . Trap . | . . . . . Miscellaneous 10 | . 3 4 . 3 Route ------- -11/Scrapyard -10/Materials -10/Mines (discovered 3 exits: [*Mat x2] / *Exi) -10/Exiles (discovered 2 exits: [*Min x2]) -9/Mines History --------- Turn | Location | Event 4 | -11/Scrapyard | Discovered new exit (range 16) 14 | -11/Scrapyard | Upgraded with Propulsion slot (x1) 14 | -11/Scrapyard | Upgraded with Utility slot (x2) 53 | -11/Scrapyard | Entered Materials 311 | -10/Materials | Build established: Mutant 331 | -10/Materials | Discovered new exit (range 16) 372 | -10/Materials | Identified exit to Mines 516 | -10/Materials | Entered Mines 516 | -10/Mines | Reached level 2 519 | -10/Mines | Received a Mining Laser from a helpful Derelict 526 | -10/Mines | Upgraded with Weapon slot (x2) 537 | -10/Mines | Met a Derelict bent on vengeance 587 | -10/Mines | Learned location of Zion (-7) 662 | -10/Mines | Discovered new exit (range 14) 811 | -10/Mines | A weapon hastily lodged in a ceiling crevice suddenly fell to the ground 903 | -10/Mines | Excavation squad dispatched 903 | -10/Mines | A large section of the Mines collapsed 1000 | -10/Mines | Discovered new exit (range 4) 1216 | -10/Mines | Deemed a non-threat by the Exiles lab entrance 1216 | -10/Mines | Discovered new exit (range 4) 1240 | -10/Mines | Entered Exiles 1261 | -10/Exiles | Discovered new exit (range 15) 1287 | -10/Exiles | Met 8R-AWN 1304 | -10/Exiles | Met EX-HEX 1356 | -10/Exiles | Met EX-BIN 1370 | -10/Exiles | Aligned with FarCom system 1371 | -10/Exiles | Given EX-Vault access code 1400 | -10/Exiles | Opened EX-Vault 1409 | -10/Exiles | Found Prototype Device 1410 | -10/Exiles | Identified Skeleton Box 1464 | -10/Exiles | Found Deploy-a-Sentry 1466 | -10/Exiles | Found Deploy-a-Sentry 1494 | -10/Exiles | Warned to stay clear of 0b10 Research branches 1528 | -10/Exiles | Met EX-DEC 1546 | -10/Exiles | Build established: Gunner 1572 | -10/Exiles | Visited The Gauntlet 1775 | -10/Exiles | Discovered new exit (range 15) 1928 | -10/Exiles | Stole two prototypes: Skeleton Box, Deploy-a-Sentry 1928 | -10/Exiles | Entered Mines 1930 | -9/Mines | Reached level 3 1988 | -9/Mines | Core integrity fell below 50% 2062 | -9/Mines | Assembled infested the area 2067 | -9/Mines | Assisted by a Guerilla fighting off Assembled 2128 | -9/Mines | DAS Turret deployed 2152 | -9/Mines | Core integrity fell below 20% 2341 | -9/Mines | Learned Materials security intel 2345 | -9/Mines | Learned Materials stockpile data 2427 | -9/Mines | Destroyed by as-19193 with Assembled Heavy Rifle Last Messages --------------- K-01 Serf collects debris. U-05 Engineer lays Concrete. Acquired derelict log, extracted data. Data stored: Materials security intel. U-05 Engineer lays Concrete. Acquired derelict log, extracted data. Data stored: Materials stockpile data. U-05 Engineer lays Concrete. Dropped Mining Laser. U-05 Engineer lays Concrete. Acquired Katana. U-05 Engineer lays Concrete. Acquired 10 matter. U-05 Engineer lays Concrete. U-05 Engineer builds a Wall. U-05 Engineer lays Concrete. Destroyed Asb. F-torch. U-05 Engineer lays Concrete. U-05 Engineer builds a Wall. U-05 Engineer lays Concrete. Map ----- +----------------------------------------------------+ | ???????## ## !%= ### ##?##### #?? | | ?####### #### #### #?# #??# #?? | | ?# ##??####??# ##?# #??# #####?? | | ?# ##?????????#=!##??# #??# #?????? | | ?## ##??????????#%=#???# #??# #?????? | | ??## ##??????????##| #???# ???# #?????? | | ???####??????????# ??? ???# #?????? | | ????????????????# #???##???# #?????? | | ????????????????# #????????# #?????? | | ????????????????# ????????# #?????? | | ????????????????? ????????# #?????? | | ???????????????? * ????????# #?????? | | ????????????????? %! #???????# #?????? | | ????????????????? ##! ???????# #?????? | | ??????????????????### ???????# #?????? | | ??????????????????## ##?????# #?????? | | ?????????????????## ####### ##????? | | ?????????????????# #????? | | ?????????????????# | #????? | | ?????????????????## ###### ##???? | | ??????????????????## ## ##????# #???? | | ???????????????????# #### ###### #???? | | ???????????????????# #??#*= #???? | | ???????????????????# #??# %##### ##??? | | ???????????????????# #??# =###?# #??? | | ???????????????????# #??#@ ## #??? | | ??????????????????## #### ##??? | | ??????????????????# a ##??? | | ??????????????????# !% ##?? | | ?????????????????## ##### #?? | | ?????????# #### ##?## *% #?? | | ?????????# $ #??## = ### ##?? | | ?????????#= ### ##???##??? | | ??????%!!==%*%= ######????????? | | ?????%==% =*%%=## #?????????????? | | ?????#####%#####?## #?????????????? | | ??????????????????# ##?????????????? | | ??????????????????# ##??????????????? | | ??????????????????## ##???????????????? | | ???????????????????#####????????????????? | | ????????????????????????????????????????? | | ????????????????????????????????????????? | | ????????????????????????????????????????? | | ????????????????????????????????????????? | | ????????????????????????????????????????? | | ????????????????????????????????????????? | | ????????????????????????????????????????? | | ????????????????????????????????????????? | | ????????????????????????????????????????? | | ????????????????????????????????????????? | +----------------------------------------------------+ Best States ------------- Heat Dissipation 25 Energy Generation 14 Energy Capacity 250 Matter Stores 300 Matter Capacity 300 Sight Range 16 Robot Scan Range 10 Terrain Scan Density 10 Armor Coverage 300 Evasion (%) 40 Targeting Accuracy 10 Item Schematics ----------------- None Robot Schematics ------------------ None Fabricated ------------ Nothing Alien Tech Used ----------------- None Achievements -------------- None Challenges ------------ None RPGLIKE | -11 -10 -10 -10 -9 --------- Run | Scr Mat Min Exi Min Levels Raised 2 | . . 1 . 1 XP Earned 6940 | 3000 1090 1425 350 1075 XP Spent 3850 | 2550 . 1300 . . Upgrades 7 | 5 . 2 . . Propulsion Slot 1 | 1 . . . . Utility Slot 2 | 2 . . . . Weapon Slot 2 | . . 2 . . Inventory Capacity 2 | 2 . . . . Protomatter Created 114 | . 28 61 . 25 Integrity Restored 202 | . 67 75 . 60 Core 202 | . 67 75 . 60 Protomatter Decayed 256 | . 5 75 . 176 Game ------ Seed ScanCouplerArmor Manual? 0 Play Time 00:28:49 Cumulative 36.9 hours Start 2020.02.29 @ 17:02:55 End 2020.03.02 @ 19:16:34 Sessions 11 Manual Loads 0 Difficulty Rogue Special Mode Winter2019/RPGLIKE Game No. 54 Rogue 54 Adventurer 0 Explorer 0 Win Type - Total 0 Types 0/0/0/0/0/0/0 Lore% 26 Gallery% 33 Achievement% 16 Wizard Run 0 Options --------- ASCII 0 Keyboard 0 Movement Mouse Keybinds 0 Fullscreen 1 Font 18/Smallcaps Map View 76x50 Tactical HUD 0 Map Filters NONE Filters NONE Steam 1 RUN: 2b4cbf48-e90e-4e70-9d71-d0629ab1095c